fUSD/lending_fUSD_20241123
["ID","MTS","AMOUNT","RATE_DAILY","PERIOD"]
[343120588,1732367465587,-794.15,0.00059799,120]
[343120589,1732367465597,-500.0,0.00059799,120]
[343120590,1732367465606,-500.0,0.00059799,120]
[343120591,1732367465616,-666.2,0.00059799,120]
[343120592,1732367465626,-666.2,0.00059799,120]
[343120593,1732367465636,-566.21,0.00059799,120]
[343120594,1732367465646,-566.21,0.00059799,120]
[343120595,1732367465655,-408.88440312,0.00059799,120]
[343120596,1732367465665,-500.0,0.00059799,120]
[343120597,1732367465674,-500.0,0.00059799,120]
[343120598,1732367465686,-500.0,0.00059799,120]
[343120599,1732367465695,-500.0,0.00059799,120]
[343120600,1732367465705,-500.0,0.00059799,120]
[343120601,1732367465715,-500.0,0.00059799,120]
[343120602,1732367465724,-931.67,0.00059799,120]
[343120603,1732367465733,-931.67,0.00059799,120]
[343120604,1732367465743,-361.33024627,0.00059799,120]
[343120605,1732367465763,-889.32975373,0.00059799,120]
[343120606,1732367465772,-93.25271673,0.00059799,120]
[343120607,1732367465783,-1157.40728327,0.00059799,120]
[343120608,1732367465792,-945.95,0.00059799,21]
[343120609,1732367465802,-945.95,0.00059799,21]
[343120610,1732367465812,-899.18,0.00059799,120]
[343120611,1732367465821,-899.18,0.00059799,120]
[343120612,1732367465831,-743.95,0.00059799,120]
[343120613,1732367465840,-315.05271673,0.00059799,120]
[343120614,1732367465852,-428.89728327,0.00059799,120]
[343120615,1732367465862,-1564.87,0.00059799,120]
[343120616,1732367465872,-1564.87,0.00059799,120]
[343120617,1732367465881,-555.48,0.00059799,120]
[343120618,1732367466148,-555.48,0.00059799,120]
[343120619,1732367466167,-655.93,0.00059799,120]
[343120620,1732367466182,-655.93,0.00059799,120]
[343120621,1732367466198,-1016.21,0.00059799,120]
[343120622,1732367466208,-1016.21,0.00059799,120]
[343120623,1732367466219,-921.52,0.00059799,120]
[343120624,1732367466229,-500.0,0.00059799,120]
[343120625,1732367466239,-254.12,0.00059799,120]
[343120626,1732367466249,-500.0,0.00059799,120]
[343120627,1732367466260,-500.0,0.00059799,120]
[343120628,1732367466271,-500.0,0.00059799,120]
[343120629,1732367466280,-834.8,0.00059799,120]
[343120630,1732367466290,-500.0,0.00059799,120]
[343120631,1732367466300,-834.8,0.00059799,120]
[343120632,1732367466310,-343.4647748,0.00059799,120]
[343120633,1732367466320,-500.0,0.00059799,120]
[343120634,1732367466330,-500.0,0.00059799,120]
[343120635,1732367466340,-500.0,0.00059799,120]
[343120636,1732367466350,-225.01298303,0.00059799,120]
[343120637,1732367466360,-500.0,0.00059799,120]
[343120638,1732367466369,-248.3446421,0.00059799,120]
[343120639,1732367466379,-1038.97,0.00059799,120]
[343120640,1732367466389,-1038.97,0.00059799,120]
[343120641,1732367466398,-667.22,0.00059799,120]
[343120642,1732367466409,-500.0,0.00059799,120]
[343120643,1732367466419,-320.18,0.00059799,120]
[343120644,1732367466428,-500.0,0.00059799,120]
[343120645,1732367466440,-500.0,0.00059799,120]
[343120646,1732367466449,-829.61,0.00059799,120]
[343120647,1732367466459,-721.38,0.00059799,120]
[343120648,1732367466468,-721.38,0.00059799,120]
[343120649,1732367466478,-979.55,0.00059799,120]
[343120650,1732367466487,-569.88,0.00059799,120]
[343120651,1732367466496,-569.88,0.00059799,120]
[343120652,1732367466505,-500.0,0.00059799,120]
[343120653,1732367466515,-500.0,0.00059799,120]
[343120654,1732367466525,-500.0,0.00059799,120]
[343120655,1732367466535,-500.0,0.00059799,120]
[343120656,1732367466544,-500.0,0.00059799,120]
[343120657,1732367466554,-236.7126071,0.00059799,120]
[343120658,1732367466565,-590.27,0.00059799,120]
[343120659,1732367466574,-500.0,0.00059799,120]
[343120660,1732367466584,-500.0,0.00059799,120]
[343120661,1732367466594,-503.34,0.00059799,120]
[343120662,1732367466604,-503.34,0.00059799,120]
[343120663,1732367466614,-1207.16,0.00059799,120]
[343120664,1732367466624,-1207.16,0.00059799,120]
[343120665,1732367466634,-500.97,0.00059799,120]
[343120666,1732367466645,-500.97,0.00059799,120]
[343120667,1732367466654,-935.7,0.00059799,120]
[343120668,1732367466664,-931.69,0.00059799,120]
[343120669,1732367466675,-931.69,0.00059799,120]
[343120670,1732367466686,-5037.27,0.00059799,120]
[343120671,1732367466696,-500.0,0.00059799,120]
[343120672,1732367466706,-165.08,0.00059799,120]
[343120673,1732367466717,-500.0,0.00059799,120]
[343120674,1732367466726,-500.0,0.00059799,120]
[343120675,1732367466736,-500.0,0.00059799,120]
[343120676,1732367466747,-500.0,0.00059799,120]
[343120677,1732367466757,-500.0,0.00059799,120]
[343120678,1732367466766,-500.0,0.00059799,120]
[343120679,1732367466776,-500.0,0.00059799,120]
[343120680,1732367466785,-500.0,0.00059799,120]
[343120681,1732367466795,-1918.87,0.00059799,120]
[343120682,1732367466805,-500.0,0.00059799,120]
[343120683,1732367466816,-1587.38,0.00059799,120]
[343120684,1732367466826,-1587.38,0.00059799,120]
[343120685,1732367466837,-4666.45,0.00059799,120]
[343120686,1732367466847,-562.04,0.00059799,120]
[343120687,1732367466858,-562.04,0.00059799,120]
[343120688,1732367466868,-500.0,0.00059799,120]
[343120689,1732367466879,-500.0,0.00059799,120]
[343120690,1732367466889,-500.0,0.00059799,120]
[343120691,1732367466899,-500.0,0.00059799,120]
[343120692,1732367466908,-500.0,0.00059799,120]
[343120693,1732367466918,-500.0,0.00059799,120]
[343120694,1732367466929,-417.0925097,0.00059799,120]
[343120695,1732367466944,-301.54,0.00059799,120]
[343120696,1732367466957,-288.1674903,0.00059799,120]
[343120697,1732367466967,-1006.8,0.00059799,120]
[343120698,1732367466978,-403.93250968,0.00059799,120]
[343120700,1732368064362,327.17,0.00026986,120]
[343120701,1732368279267,150.0,0.0004,2]
[343120702,1732368294660,165.670802,0.000428,30]
[343120703,1732368309268,81358.89486398,0.0001,2]
[343120705,1732368318510,4051.33072053,0.0003143,4]
[343120706,1732368318860,477.12749073,0.0004,30]
[343120707,1732368320415,8417.62857845,9e-05,2]
[343120708,1732368325007,2412.39496986,0.00038,120]
[343120709,1732368332447,150.0,1e-06,2]
[343120710,1732368332469,150.0,1e-06,2]
[343120711,1732368332492,150.0,1e-06,2]
[343120712,1732368332517,150.0,1e-06,2]
[343120713,1732368332540,150.0,1e-06,2]
[343120714,1732368332562,150.0,1e-06,2]
[343120715,1732368332583,150.0,1e-06,2]
[343120716,1732368332604,89.3167042,1e-06,2]
[343120717,1732368333349,2412.39496986,0.0004,120]
[343120718,1732368333684,60.6832958,0.00034091,2]
[343120719,1732368333710,101.6967042,0.00034091,2]
[343120720,1732368341667,4824.78993972,0.00043,120]
[343120721,1732368353089,19999.99999802,9.99e-05,2]
[343120722,1732368356186,34071.57549502,6.94e-05,2]
[343120723,1732368357177,2503.20900342,0.00041,60]
[343120724,1732368359605,2372.29846716,0.00038,120]
[343120725,1732368366950,324.66553197,0.0004,30]
[343120726,1732368367247,152.0,0.0003,120]
[343120727,1732368367912,2372.29846716,0.0004,120]
[343120728,1732368368334,3210.29387405,0.0001,2]
[343120729,1732368369932,499.9531,0.00040996,120]
[343120730,1732368370416,200.0,0.000398,2]
[343120731,1732368375174,323.1603,0.00039888,7]
[343120732,1732368376215,4744.59693433,0.00043,120]
[343120733,1732368379378,151.0,0.0003,120]
[343120734,1732368380099,951.95804807,0.00025,2]
[343120735,1732368380477,151.0,0.00032603,120]
[343120736,1732368381087,151.0,0.00035205,120]
[343120737,1732368381648,151.0,0.00037808,120]
[343120738,1732368382206,151.0,0.00040411,120]
[343120739,1732368382503,185881.39909281,0.000428,60]
[343120740,1732368382767,151.0,0.00043014,120]
[343120741,1732368387274,253.8426507,0.00025,2]
[343120742,1732368387964,1076.25605495,0.00043,30]
[343120743,1732368392005,1638.93411548,0.00015,2]
[343120744,1732368393880,450.96533521,0.00042,120]
[343120745,1732368396115,-550.0,0.00041095,5]
[343120746,1732368396137,-158.5,0.00041096,2]
[343120747,1732368396158,-432.72770744,0.00041096,2]
[343120748,1732368400842,15468.6781382,0.00011888,2]
[343120749,1732368417096,7847.64265264,0.00016,2]
[343120750,1732368418791,185.17,0.00039602,30]
[343120751,1732368422425,27406.68858694,0.00035,10]
[343120752,1732368422986,9240.0,0.0004,2]
[343120753,1732368423306,4619.0,0.0004,2]
[343120754,1732368423633,4619.0,0.0004,2]
[343120755,1732368423939,4619.0,0.0004,2]
[343120756,1732368424266,4619.0,0.0004,2]
[343120757,1732368426724,312.70588604,0.00039,120]
[343120758,1732368429618,1517.64,0.000153,2]
[343120759,1732368433736,27474.97050774,0.000235,2]
[343120760,1732368439914,205.0,9.8e-05,2]
[343120761,1732368444105,1512.13462442,0.0001305,2]
[343120762,1732368444511,247.37592542,0.000101,2]
[343120763,1732368451282,54182.87747074,1e-06,7]
[343120764,1732368453157,4569.36408064,0.00025,2]
[343120765,1732368454733,1576.0,0.000305,2]
[343120766,1732368456343,535.79001879,0.00039,2]
[343120767,1732368461602,250.0,0.00027,2]
[343120768,1732368462534,319.6335037,0.00035,30]
[343120769,1732368463120,4487.96081797,9e-05,2]
[343120770,1732368463364,10096.28752443,0.000429,120]
[343120771,1732368463952,1155.42449368,0.000335,2]
[343120772,1732368468177,471.29325037,0.000314,30]
[343120773,1732368468876,1047.879999,0.0003121,2]
[343120774,1732368469889,306508.96803028,0.00028,4]
[343120775,1732368476603,1199.46728912,0.00035,90]
[343120776,1732368476768,524.84385738,0.00013,2]
[343120777,1732368480746,11563.17004689,0.0001,2]
[343120778,1732368481941,141249.22369743,0.000145,3]
[343120779,1732368482030,7209.62886337,0.000217,2]
[343120780,1732368482072,1689.23346439,0.000181,2]
[343120781,1732368484084,407038.54321369,0.00013,2]
[343120782,1732368485945,150.0,0.00027,2]
[343120783,1732368498567,9805.28392648,0.0001439,2]
[343120784,1732368499843,282.42424671,0.00022,12]
[343120785,1732368509139,380.50511319,0.00027,2]
[343120786,1732368510773,1219.92043578,0.00015235,2]
[343120787,1732368512416,20960.41827733,0.0004,7]
[343120788,1732368512816,16167.22770215,0.000129,2]
[343120789,1732368513942,374.60745665,0.0004,2]
[343120790,1732368514103,244.55505079,0.00022,2]
[343120791,1732368514997,485.58241679,0.00025,2]
[343120792,1732368515531,1129.30575245,0.00018,2]
[343120793,1732368518103,16983.18667222,0.00022,2]
[343120794,1732368518199,213.10557981,0.0001,2]
[343120795,1732368519461,2091.93493776,0.00027,2]
[343120796,1732368521216,172.14040453,0.00036,2]
[343120797,1732368521272,5019.01603371,0.000232,2]
[343120798,1732368521620,1732.4370571,0.0003,2]
[343120799,1732368521769,266.78290436,0.0002301,2]
[343120800,1732368521796,2602.83280294,0.0001,2]
[343120801,1732368521927,508.99717985,0.000241,2]
[343120802,1732368521955,439.69664482,0.0002421,2]
[343120803,1732368522048,566.38642024,0.0002322,2]
[343120804,1732368522172,519.02146471,0.0002604,2]
[343120805,1732368522268,447.0309313,0.0003,2]
[343120806,1732368522420,226.5315227,0.0002999,2]
[343120807,1732368522448,5389.0,0.00015,2]
[343120808,1732368522605,2441.0,0.0002,2]
[343120809,1732368523315,496.36199515,0.00015,2]
[343120810,1732368523830,5604.0881195,0.00018,2]
[343120811,1732368524146,986.9993034,0.00027,2]
[343120812,1732368524317,1016.60669081,0.0003,2]
[343120813,1732368524346,1028.04678995,0.00018,2]
[343120814,1732368524376,814.28767408,0.00013,2]
[343120815,1732368524779,8002.32696938,0.0001,2]
[343120816,1732368525057,255.39473138,0.000107,2]
[343120817,1732368525110,295.78160459,0.000151,2]
[343120818,1732368525292,1185.80930621,0.0003,2]
[343120819,1732368525549,482.78512288,0.000154,2]
[343120820,1732368525611,1138.76099089,0.00021,2]
[343120821,1732368525739,2046.2602069,0.0002,2]
[343120822,1732368525843,187.90207842,0.00021,2]
[343120823,1732368526224,919.65346974,0.0004,2]
[343120824,1732368527389,150.0,9e-05,3]
[343120825,1732368527416,300.0,0.0001,3]
[343120833,1732368539329,163.63,0.00038186,2]
[343120847,1732368607876,398.14409521,0.00043562,120]
[343120848,1732368608554,500.0,0.00043562,120]
[343120849,1732368608678,500.0,0.00043562,120]
[343120850,1732368609766,323.51,0.00041622,30]
[343120851,1732368612636,174.0,0.00041086,30]
[343120852,1732368612856,174.0,0.00041622,30]
[343120853,1732368613099,174.0,0.00041622,30]
[343120854,1732368613351,174.0,0.00041622,30]
[343120855,1732368613562,174.0,0.00041622,30]
[343120856,1732368613774,174.0,0.00041622,30]
[343120857,1732368613993,174.0,0.00041622,30]
[343120858,1732368614236,174.0,0.00041622,30]
[343120859,1732368614435,174.0,0.0004299,30]
[343120860,1732368614747,174.0,0.0004299,30]
[343120861,1732368620496,269.59,0.00041622,30]
[343120864,1732368631234,224.66,0.00041622,30]
[343120877,1732368631534,-550.0,0.00040994,5]
[343120878,1732368631543,-2019.30579221,0.00040995,2]
[343120879,1732368631555,-3408.0,0.00040995,2]
[343120880,1732368631680,-913.74072386,0.00040995,2]
[343120881,1732368631690,-611.25927614,0.00041096,2]
[343120882,1732368631760,-363.61071582,0.00041096,2]
[343120883,1732368631771,-1284.335114,0.00041096,2]
[343120884,1732368631909,-29080.4781417,0.00041096,2]
[343120885,1732368631919,-170.96426292,0.00041096,2]
[343120886,1732368631929,-210.61,0.00041096,2]
[343120887,1732368631939,-3743.08894409,0.00041542,15]
[343120888,1732368631949,-1300.0,0.00041631,4]
[343120889,1732368631959,-2210.0,0.00041631,4]
[343120890,1732368631969,-1064.0,0.00041631,4]
[343120891,1732368631979,-111693.01880638,0.00041632,2]
[343120892,1732368631988,-307.83984491,0.00041642,2]
[343120897,1732368632231,500.0,0.00042999,31]
[343120898,1732368632280,403.7731111,0.00042999,31]
[343120906,1732368637486,-692.52663627,0.00041642,2]
[343120908,1732368637591,-631.1515153,0.00041642,2]
[343120909,1732368637602,-150.43374611,0.00042686,2]
[343120910,1732368637611,-38848.47766852,0.00043,3]
[343120911,1732368637620,-3131.44604124,0.00043,2]
[343120912,1732368637665,-14260.17256708,0.00043,2]
[343120913,1732368637811,-2064.21618082,0.00043,2]
[343120914,1732368637888,-1522.69992,0.00043,2]
[343121066,1732368639461,243.91896,0.00027,120]
[343121067,1732368639474,-13880.59854122,0.00043,2]
[343121068,1732368639484,-539.66775,0.00043399,2]
[343121070,1732368639494,-190.681,0.00043399,2]
[343121072,1732368639503,-159.71922837,0.000435,2]
[343121074,1732368639514,-2942.75790683,0.000435,2]
[343121076,1732368639527,-5428.10623889,0.000435,2]
[343121078,1732368639539,-3241.64499995,0.000435,2]
[343121084,1732368639591,-3541.56271679,0.000435,2]
[343121086,1732368639601,-500.0,0.00043563,2]
[343121088,1732368639612,-159.23595476,0.00043563,10]
[343121090,1732368639621,-770.0,0.00043682,5]
[343121092,1732368639630,-999.999999,0.00044,2]
[343121094,1732368639639,-1000.0,0.0004411,2]
[343121096,1732368639649,-500.0,0.000444,7]
[343121098,1732368639659,-3298.02953806,0.000449,15]
[343121100,1732368639669,-210.0,0.00045,2]
[343121102,1732368639678,-14821.08070217,0.00045,2]
[343121104,1732368639690,-864.13350181,0.00045,2]
[343121107,1732368639705,-10153.59830184,0.00045,2]
[343121109,1732368639716,-5643.11785816,0.00045,2]
[343121114,1732368639753,-5907.30000001,0.00045,2]
[343121207,1732368642576,-1029.499999,0.00045,2]
[343121208,1732368642588,-686.56120592,0.00045,2]
[343121209,1732368642751,-126.80310161,0.00045,2]
[343121210,1732368642915,-500.0,0.00043682,5]
[343121211,1732368642929,-37906.27182768,0.00045,2]
[343121212,1732368642942,-999.99,0.00045,2]
[343121213,1732368642951,-1104.45,0.00045,2]
[343121215,1732368642961,-299.99,0.00045,120]
[343121216,1732368642971,-6317.95,0.00045,2]
[343121217,1732368642981,-706.6,0.00045,10]
[343121218,1732368642990,-8397.24150914,0.00045,30]
[343121219,1732368643002,-7799.64575909,0.00045,30]
[343121220,1732368643013,-4344.21239456,0.00045,30]
[343121221,1732368643024,-2989.84860006,0.00045,30]
[343121223,1732368643044,-1203.70451363,0.00040895,2]
[343121242,1732368645580,-672.79057035,0.00040895,2]
[343121243,1732368645591,-3411.72217399,0.00040895,2]
[343121244,1732368645603,-11999.96141686,0.00040895,2]
[343121245,1732368645614,-3465.55173715,0.00045,30]
[343121246,1732368645624,-9999.99,0.00045,2]
[343121247,1732368645633,-1891.32,0.00045,15]
[343121248,1732368645643,-150.99,0.00045,30]
[343121249,1732368645653,-150.99,0.00045,2]
[343121250,1732368645662,-6564.85811544,0.00045,2]
[343121251,1732368645674,-3435.13188456,0.00045,2]
[343121252,1732368645683,-300.0,0.00045,30]
[343121253,1732368645695,-1500.0,0.00045112,2]
[343121254,1732368645704,-3743.08894404,0.0004557,15]
[343121255,1732368645714,-151.0,0.00045616,120]
[343121256,1732368645723,-3458.57141,0.000457,120]
[343121257,1732368645732,-319.98293824,0.000459,2]
[343121258,1732368645742,-183.09198845,0.00045999,120]
[343121259,1732368645753,-6030.98742466,0.00046,120]
[343121260,1732368645762,-2903.15051005,0.00046,120]
[343121261,1732368645778,-3027.59565786,0.00046,120]
[343121262,1732368645787,-387.82154211,0.00046,2]
[343121264,1732368645803,-3072.58606514,0.00046,2]
[343121267,1732368656250,188601.81283472,0.0004,120]
[343121268,1732368656276,1112.9004929,0.0004,120]
[343121269,1732368656301,41955.56551993,0.0004,120]
[343121270,1732368656328,150000.0,0.0004,120]
[343121271,1732368656351,55000.0,0.0004,120]
[343121272,1732368656374,563329.72115245,0.0004,120]
[343121273,1732368672920,1000000.0,0.0004,120]
[343121274,1732368682166,1000000.0,0.0004,120]
[343121275,1732368687749,1000000.0,0.0004,120]
[343121276,1732368693613,1000000.0,0.0004,120]
[343121277,1732368700295,1000000.0,0.0004,120]
[343121278,1732368705570,1000000.0,0.0004,120]
[343121279,1732368709487,1000000.0,0.0004,120]
[343121280,1732368712238,1000000.0,0.0004,120]
[343121281,1732368716549,1000000.0,0.0004,120]
[343121282,1732368739395,1000000.0,0.0004,120]
[343121283,1732368744782,10000000.0,0.0004,120]
[343121284,1732368747968,10000000.0,0.0004,120]
[343121285,1732368751077,10000000.0,0.0004,120]
[343121286,1732368753441,10000000.0,0.0004,120]
[343121287,1732368770528,281.77730828,0.0004,90]
[343121288,1732368781754,250.0,0.00031,2]
[343121289,1732368783451,300.0,0.00033,2]
[343121290,1732368784695,350.0,0.00035,2]
[343121291,1732368785942,400.0,0.00037,2]
[343121292,1732368787207,450.0,0.00039,2]
[343121293,1732368805868,500.0,0.00024932,2]
[343121294,1732368806589,500.0,0.00024932,2]
[343121295,1732368807338,500.0,0.00024932,2]
[343121296,1732369010520,162.38,0.00026569,2]
[343121297,1732369127506,185.17,0.0003746,30]
[343121298,1732369231363,3489.6938492,0.0004,120]
[343121299,1732369296285,163.63,0.00036913,2]
[343121300,1732369473985,-1000.0,0.00040999,2]
[343121301,1732369474007,-1000.0,0.00040999,2]
[343121302,1732369474029,-500.0,0.00041,2]
[343121303,1732369474051,-155.43,0.00041096,2]
[343121304,1732369474073,-259.0,0.00041096,2]
[343121305,1732369474094,-550.0,0.00042799,5]
[343121306,1732369474116,-4621.740936,0.000428,30]
[343121307,1732369474138,-550.0,0.00043,2]
[343121308,1732369497500,-1724.63,0.00044283,2]
[343121309,1732369497523,-205.78328695,0.00044973,2]
[343121310,1732369497544,-153.0,0.00044973,90]
[343121311,1732369497566,-600.0,0.00045,2]
[343121312,1732369497588,-94.41577705,0.00045519,5]
[343121313,1732369504023,150.0,0.00034548,10]
[343121314,1732369693552,151.0,0.0003,120]
[343121315,1732369694124,151.0,0.00032849,120]
[343121316,1732369694634,152.10532875,0.0004,7]
[343121317,1732369694689,151.0,0.00035699,120]
[343121318,1732369695256,151.0,0.00038548,120]
[343121328,1732369751264,162.38,0.00023931,2]
[343121335,1732369771163,-151.0,0.00041397,120]
[343121336,1732369771186,-890.17787013,0.00041796,2]
[343121337,1732369771208,-214.1528328,0.00041796,2]
[343121338,1732369771230,-253.436,0.00041896,2]
[343121339,1732369771250,-214.1528328,0.0004201,2]
[343121340,1732369771270,-214.1528328,0.00042223,2]
[343121341,1732369771291,-214.1528328,0.00042437,2]
[343121342,1732369771311,-214.1528328,0.00042651,2]
[343121343,1732369771330,-214.1528328,0.00042865,2]
[343121344,1732369771352,-879.06337707,0.00042972,2]
[343121358,1732369831892,-861.9446305,0.00043,2]
[343121359,1732369831904,-1644.885151,0.00043,2]
[343121360,1732369831919,-14745.73002975,0.00043,2]
[343121361,1732369831931,-6660.44018875,0.00043,2]
[343121362,1732369831941,-214.1528328,0.00043078,2]
[343121363,1732369831950,-214.1528328,0.00043292,2]
[343121364,1732369831959,-214.1528328,0.00043506,2]
[343121365,1732369831968,-214.1528328,0.0004372,2]
[343121366,1732369831978,-325.59693975,0.00043925,2]
[343121367,1732369831987,-214.1528328,0.00043933,2]
[343121368,1732369832000,-279.918,0.00044025,2]
[343121369,1732369832009,-214.1528328,0.00044147,2]
[343121370,1732369832019,-151.0,0.00044247,120]
[343121371,1732369832029,-154.2,0.00044558,120]
[343121372,1732369832038,-699.91,0.00044599,2]
[343121373,1732369832048,-172.83,0.00044651,2]
[343121374,1732369832057,-1000.0,0.00044655,120]
[343121375,1732369832067,-1266.64,0.00044674,4]
[343121376,1732369832077,-200.0,0.00044753,2]
[343121377,1732369832087,-325.59693974,0.00044885,2]
[343121378,1732369832096,-1580.04,0.00044894,2]
[343121379,1732369832105,-550.0,0.00044984,5]
[343121380,1732369832115,-2751.0,0.00044985,120]
[343121382,1732369832124,-1047.7,0.00044992,2]
[343121383,1732369832135,-150.0,0.00045589,10]
[343121385,1732369832144,-9677.59,0.0004559,7]
[343121386,1732369832154,-250.0,0.00045607,120]
[343121387,1732369832164,-456.19,0.00045626,2]
[343121388,1732369832173,-3207.23,0.00045646,2]
[343121389,1732369832183,-348.0,0.00045665,5]
[343121390,1732369832193,-7000.0,0.00045666,7]
[343121391,1732369832202,-1000.0,0.00045677,2]
[343121392,1732369832211,-3037.65,0.00045677,2]
[343121393,1732369832220,-168.76290368,0.0004579,120]
[343121394,1732369832229,-250.0,0.00045792,2]
[343121395,1732369832239,-3206.06,0.00045807,2]
[343121396,1732369832250,-181.26,0.00045841,120]
[343121397,1732369832259,-150.0,0.00045863,2]
[343121398,1732369832268,-2004.41,0.00045869,2]
[343121399,1732369832278,-150.99,0.00045869,30]
[343121400,1732369832287,-500.0,0.00045873,10]
[343121401,1732369832296,-4370.52,0.00045886,63]
[343121402,1732369832305,-838.0,0.00045888,4]
[343121403,1732369832315,-150.99,0.00045889,2]
[343121404,1732369832324,-9999.99,0.00045889,2]
[343121405,1732369832333,-999.99,0.00045889,2]
[343121406,1732369832342,-1217.74,0.00045889,2]
[343121407,1732369832351,-1956.58,0.0004589,75]
[343121408,1732369832360,-178.35,0.0004589,75]
[343121409,1732369832369,-6550.64,0.0004589,2]
[343121410,1732369832378,-5922.38,0.0004589,2]
[343121411,1732369832387,-259.0,0.0004589,2]
[343121412,1732369832396,-10930.74,0.0004589,30]
[343121413,1732369832405,-188.92539833,0.00045898,7]
[343121414,1732369832414,-1000.0,0.00045898,2]
[343121415,1732369832424,-550.07,0.00045898,2]
[343121416,1732369832434,-1000.0,0.00045899,2]
[343121417,1732369832443,-2351.13,0.00045902,2]
[343121418,1732369832452,-240.12,0.00045931,2]
[343121419,1732369832462,-7210.23945097,0.00045931,2]
[343121420,1732369832488,-9501.31159278,0.00045931,2]
[343121423,1732369837625,-1735.0,0.00045931,2]
[343121424,1732369837636,-1563.62126,0.00045931,2]
[343121425,1732369837648,-1632.075882,0.00045931,2]
[343121429,1732369837813,-500.0,0.00044025,2]
[343121430,1732369837824,-2257.75181425,0.00045931,2]
[343121431,1732369837833,-1728.43673284,0.00045954,2]
[343121432,1732369837847,-912.24257222,0.00045954,2]
[343121433,1732369837859,-6077.45069494,0.00045954,2]
[343121434,1732369837868,-159.1466688,0.00045973,2]
[343121435,1732369837879,-150.1466688,0.00045973,2]
[343121436,1732369837888,-159.42138754,0.00045973,2]
[343121437,1732369837897,-500.0,0.00045973,2]
[343121438,1732369837907,-159.1498624,0.00045973,2]
[343121439,1732369837916,-64133.41,0.00045979,2]
[343121440,1732369837926,-412.33,0.00045989,120]
[343121441,1732369837936,-2000.0,0.00046,7]
[343121442,1732369837945,-200.0,0.00046,7]
[343121443,1732369837954,-200.0,0.00046,7]
[343121444,1732369837964,-5604.22,0.00046007,2]
[343121445,1732369837973,-1000.0,0.00046009,2]
[343121446,1732369837982,-6377.3440242,0.00046019,2]
[343121447,1732369837991,-150.0,0.00046047,2]
[343121448,1732369838002,-166.22,0.0004605,2]
[343121449,1732369838011,-998.86,0.0004605,2]
[343121450,1732369838021,-200.0,0.00046063,2]
[343121451,1732369838030,-158.5,0.00046143,2]
[343121452,1732369838039,-210.61,0.00046143,2]
[343121453,1732369838049,-500.0,0.00046155,2]
[343121454,1732369838058,-1000.0,0.00046159,2]
[343121455,1732369838068,-202.83,0.00046178,120]
[343121456,1732369838077,-159.04,0.0004636,120]
[343121457,1732369838087,-287.755071,0.00046381,30]
[343121458,1732369838098,-500.0,0.00046381,2]
[343121459,1732369838107,-3723.29,0.00046381,2]
[343121460,1732369838117,-351.53,0.00046419,2]
[343121461,1732369838127,-2902.7456223,0.00046519,2]
[343121462,1732369838143,-2329.95,0.00046519,2]
[343121463,1732369838159,-1606.3843777,0.00046519,2]